Cogmind - Beta 13 @@@ ROGUE MODE // 2024.04.02 @ 22:13:28 Player: Ehseezed Result: Smashed by cave-in Performance ------------- Evolutions (0) 0 Regions Visited (1) 200 Robots Destroyed (16) 80 Value Destroyed (402) 402 Prototype IDs (0) 0 Alien Tech Used (0) 0 Bonus (0) 0 TOTAL SCORE: 682 Bonus ------- None Cogmind --------- Core Integrity 0/250 Matter 224/300 Energy 250/250 System Corruption 5% Temperature Cool (0) Movement Walking (190) Ox1 Location -10/Materials Parts ------- > --- POWER (1) -------- Ion Engine > --- PROPULSION (2) --- Aluminum Leg > --- UTILITY (2) ------ Small Storage Unit Structural Scanner > --- WEAPON (2) ------- Light Assault Rifle Grenade Launcher > --- INVENTORY (8) ---- Improved Heat Sink Peak State ------------ > --- POWER ------------ Ion Engine > --- PROPULSION ------- Aluminum Leg Aluminum Leg > --- UTILITY ---------- Heat Sink Small Storage Unit > --- WEAPON ----------- Small Laser Grenade Launcher > --- INVENTORY -------- Aluminum Leg Light Assault Rifle [Rating: 7] Favorites ----------- Power Ion Engine Engine Ion Engine Propulsion Aluminum Leg Leg Aluminum Leg Utility Heat Sink Device Heat Sink Storage Small Storage Unit Weapon Small Laser Energy Gun Small Laser Ballistic Gun Light Assault Rifle Launcher Grenade Launcher Build | -11 -10 ------- Run | Yrd Mat Slots Evolved . | . . Power . | . . Propulsion . | . . Utility . | . . Weapon . | . . Parts Attached 18 | 7 11 Power 2 | 1 1 Engine 2 | 1 1 Core . | . . Reactor . | . . Propulsion 4 | 2 2 Treads . | . . Leg 4 | 2 2 Wheel . | . . Hover . | . . Flight . | . . Utility 5 | 1 4 Device 2 | 1 1 Storage 3 | . 3 Processor . | . . Hackware . | . . Protection . | . . Artifact . | . . Weapon 7 | 3 4 Energy Gun 3 | 2 1 Energy Cannon . | . . Ballistic Gun 2 | 1 1 Ballistic Cannon . | . . Launcher 2 | . 2 Special Weapon . | . . Impact Weapon . | . . Slashing Weapon . | . . Piercing Weapon . | . . Special Melee Weapon . | . . Unidentified Prototypes . | . . Parts Lost 1 | . 1 Power . | . . Propulsion 1 | . 1 Utility . | . . Weapon . | . . Highest Loss Streak 1 | . 1 To Critical Strikes . | . . Average Slot Usage (%) 91 | . 91 Engine 14 | . 14 Leg 28 | . 28 Device 13 | . 13 Storage 6 | . 6 Energy Gun 13 | . 13 Ballistic Gun 2 | . 2 Launcher 11 | . 11 Naked Turns . | . . Heaviest Build 15 | 6 15 Greatest Support 20 | 20 20 Greatest Overweight (x) . | . . Average Overweight (x) . | . . Largest Inventory Capacity 25 | 5 25 Average Capacity 5 | 5 6 Most Carried 5 | 5 5 Average Carried 2 | 2 2 Final Capacity 8 | 5 8 Final Carried 4 | 4 1 Class Distribution -------------------- 57% | Scavenger-Mutant 42% | Mutant Dominant Class ---------------- Scavenger-Mutant | -10/Materials Resources | -11 -10 ----------- Run | Yrd Mat Matter Collected 498 | 253 245 Remotely . | . . Salvage Created 418 | 46 372 Parts 34 | 4 30 Haulers Intercepted . | . . Recyclers Shooed 1 | . 1 Parts Field Recycled . | . . Retrieved Matter . | . . Parts Self-Destructed . | . . Prevented . | . . Kills | -11 -10 ------- Run | Yrd Mat Combat Hostiles Destroyed 12 | 1 11 Guns 2 | 1 1 AOE 10 | . 10 Classes Destroyed 6 | 1 5 Worker 1 | . 1 Tunneler 1 | . 1 Recycler 1 | . 1 Operator 1 | . 1 Swarmer 3 | . 3 Grunt 9 | 1 8 Best Kill Streak 5 | 1 5 Combat Bots Only 3 | 1 3 Max Kills in Single Turn 2 | 1 2 Gunslinging . | . . Exploded 2 | . 2 Melee . | . . Uniques/NPCs Destroyed . | . . Combat | -11 -10 -------- Run | Yrd Mat Hostile Shots Fired 41 | 4 37 Missed 14 | 1 13 Damage Taken 788 | 34 754 Core 261 | 11 250 Absorbed by Shields . | . . Core Remaining (%) 95 | 95 . Volleys Fired 28 | 3 25 Largest 2 | 2 2 Hottest 80 | 60 80 Shots Fired 52 | 6 46 Gun 33 | 6 27 Cannon . | . . Launcher 19 | . 19 Special . | . . Kinetic 9 | 3 6 Thermal 24 | 3 21 Explosive 19 | . 19 Electromagnetic . | . . Robot Hit Streak 5 | 2 5 Robot Miss Streak 4 | 1 4 Penetration Max . | . . Secondary Targets . | . . Shots Hit Robots 26 | 4 22 Core Hits 32 | 2 30 Critical Kills . | . . Critical Parts Destroyed . | . . Critical Strikes . | . . Melee Attacks . | . . Impact . | . . Slashing . | . . Piercing . | . . Sneak Attacks . | . . Combat Hostiles . | . . Follow-up Attacks . | . . Damage Inflicted 1057 | 36 1021 Guns 183 | 36 147 Cannons . | . . Explosions 874 | . 874 Melee . | . . Ramming . | . . Kinetic 45 | 13 32 Thermal 138 | 23 115 Explosive 874 | . 874 Electromagnetic . | . . Impact . | . . Slashing . | . . Piercing . | . . Highest Corruption . | . . Average Corruption . | . . Corruption Purged . | . . Corruption Blocked . | . . Overload Shots . | . . Overflow Damage 28 | . 28 Projectiles . | . . Explosions 28 | . 28 Melee . | . . Knockbacks . | . . Impact . | . . Kinetic . | . . Secondary . | . . Self-Inflicted Damage 147 | . 147 Shots 9 | . 9 Rammed . | . . Targets Rammed . | . . Kicked . | . . Crushed . | . . Highest Temperature 32 | 32 25 Average Temperature 11 | 19 7 Received Heat Transfer 168 | 18 150 Siege Activations . | . . Robots Corrupted . | . . Combat Hostiles . | . . Parts Fried . | . . Impact Corruptions . | . . Robots Melted . | . . Combat Hostiles . | . . Parts Melted . | . . Heat Transferred 300 | 50 250 Parts Sabotaged . | . . Parts Stolen . | . . Parts Stripped . | . . Power Chain Reactions . | . . Alert | -11 -10 ------- Run | Yrd Mat Peak Influence 351 | 20 351 Initial 13 | . 13 Average 115 | 1 159 Maximum Alert Level 1 | . 1 Low Security (%) 82 | 100 75 Level 1 17 | . 24 Level 2 . | . . Level 3 . | . . Level 4 . | . . Level 5 . | . . High Security . | . . Max Security . | . . Squads Dispatched 1 | . 1 Investigation 1 | . 1 Extermination . | . . Reinforcement . | . . Assault . | . . Garrison . | . . Intercept . | . . Searches Triggered . | . . Construction Impeded . | . . Haulers Reinforced . | . . Active Scanning Responses . | . . Cargo Convoy Interrupts . | . . Stealth | -11 -10 --------- Run | Yrd Mat Distress Signals . | . . Communications Jammed . | . . Distress Signals . | . . Times Spotted 17 | 1 16 Peak Tracking Total 4 | 1 4 Tactical Retreats . | . . Traps | -11 -10 ------- Run | Yrd Mat Traps Triggered . | . . Indirectly . | . . Trap Hack Attempts . | . . Triggered . | . . Disarmed . | . . Reprogrammed . | . . Reused . | . . Traps Extracted . | . . Installed . | . . Triggered . | . . Machines | -11 -10 ---------- Run | Yrd Mat Machines Disabled 1 | . 1 Max in Single Turn 1 | . 1 Machines Repaired . | . . Machines Dismantled . | . . Machines Sabotaged . | . . Overloaded Fab Kills . | . . Hacking | -11 -10 --------- Run | Yrd Mat Machines Accessed 5 | . 5 Terminals 3 | . 3 Fabricators . | . . Repair Stations 1 | . 1 Recycling Units 1 | . 1 Scanalyzers . | . . Garrison Access . | . . Total Hacks 14 | . 14 Successful 12 | . 12 Failed 2 | . 2 Catastrophic . | . . Database Lockouts . | . . Manual . | . . Terminals 11 | . 11 Fabricators . | . . Repair Stations 1 | . 1 Recycling Units 2 | . 2 Scanalyzers . | . . Garrison Access . | . . Terminal Hacks 9 | . 9 Record 8 | . 8 Alert Level 1 | . 1 Fabricator Hacks . | . . Repair Station Hacks 1 | . 1 Scan Component 1 | . 1 Recycling Unit Hacks 2 | . 2 Recycle Component 1 | . 1 Process 1 | . 1 Scanalyzer . | . . Garrison Access Hacks . | . . Unauthorized Hacks . | . . Terminals . | . . Fabricators . | . . Repair Stations . | . . Recycling Units . | . . Scanalyzers . | . . Garrison Access . | . . Data Cores Recovered 1 | . 1 Used . | . . Hacking Detections 3 | . 3 Full Trace Events 2 | . 2 Feedback Events . | . . Feedback Blocked . | . . Robot Schematics Acquired . | . . Robots Built . | . . Authchips . | . . Time . | . . Total Robot Build Rating . | . . Part Schematics Acquired . | . . Parts Built . | . . Authchips . | . . Time . | . . Total Part Build Rating . | . . Parts Repaired . | . . Time . | . . Parts Recycled 1 | . 1 Recycled Matter 83 | . 83 Retrieved Matter . | . . Retrieved Components . | . . Parts Scanalyzed . | . . Part Schematics Acquired . | . . Parts Damaged . | . . Bothacking | -11 -10 ------------ Run | Yrd Mat Used RIF Installer . | . . Robots Hacked . | . . Non-combat . | . . Combat . | . . Robot Hacks Applied . | . . Relay Couplers Released . | . . Fabnet Peak Effective % . | . . Robots Rewired . | . . Allies Hacked . | . . Hacks Repelled . | . . Allies | -11 -10 -------- Run | Yrd Mat Total Allies . | . . Largest Group . | . . Highest-Rated Group . | . . Highest-Rated Ally . | . . Total Orders . | . . Ally Attacks . | . . Total Damage . | . . Kills . | . . Allies Corrupted . | . . Allies Melted . | . . Intel | -11 -10 ------- Run | Yrd Mat Robot Analysis Total . | . . Derelict Logs Recovered . | . . Drone Launches . | . . Drone Recoveries . | . . Exploration | -11 -10 ------------- Run | Yrd Mat Turns Passed 772 | 217 555 Spaces Moved 457 | 88 369 Core 18 | 18 . Treads . | . . Legs 439 | 70 369 Wheels . | . . Hover . | . . Flight . | . . Fastest Speed 50 | 50 120 Average Speed 117 | 105 120 Slowest Speed 120 | 120 120 Overloaded Moves . | . . Propulsion Burnouts . | . . Robots Hopped . | . . Cave-ins Triggered 1 | . 1 Exploration Rate (%) 36 | 6 66 Regions Visited 1 Branch Regions . Pre-discovered Areas . | . . Known Exits Taken . | . . Unknown Exits Taken 1 | 1 . Scrap Searched . | . . Spaces Dug 6 | . 6 Terrain Destroyed 115 | . 115 Melee . | . . Projectile . | . . AOE 115 | . 115 Terrain Rammed . | . . Walls Destroyed . | . . Machines Disabled . | . . Actions | -11 -10 --------- Run | Yrd Mat Total 646 | 207 439 Wait 111 | 96 15 Move 456 | 87 369 Hop . | . . Pick Up 21 | 12 9 Fast Attach . | . . Attach 10 | 6 4 Detach . | . . Swap 8 | 1 7 Drop 12 | 2 10 Fire 28 | 3 25 Melee . | . . Ram . | . . Kick . | . . Crush . | . . Escape Stasis . | . . Rewire . | . . Trap . | . . Miscellaneous . | . . Route ------- -11/Scrapyard -10/Materials (discovered 3 exits: [*Mat x2] / [*Min]) History --------- Turn | Location | Event 2 | -11/Scrapyard | Met Revision 17 183 | -11/Scrapyard | Discovered new exit (range 8) 218 | -11/Scrapyard | Entered Materials 325 | -10/Materials | Build established: Mutant 361 | -10/Materials | Discovered new exit (range 10) 575 | -10/Materials | Discovered new exit (range 14) 587 | -10/Materials | Discovered new exit (range 9) 629 | -10/Materials | Build established: Scavenger-Mutant 774 | -10/Materials | Crushed by falling debris 774 | -10/Materials | Smashed by cave-in Last Messages --------------- typing and use autocomplete if desired (Up/Down/Tab/Enter). So-called indirect hacking has a lower chance of success, and is described in more detail in the manual. >>Alert(Check) Current Alert Level: Low Security G-47 Trooper destroyed. G-34 Mercenary destroyed. The unstable cave ceiling collapses. U-05 Engineer builds a Wall. The unstable cave ceiling collapses. U-05 Engineer builds a Door. Acquired Imp. Heat Sink. Acquired 25 matter. U-05 Engineer builds a Wall. The unstable cave ceiling collapses. Crushed by falling debris. [Achievement: Unlikely Earthworm] Aluminum Leg destroyed. System corrupted by crushing effect (+5). Map ----- +----------------------------------------------------+ | ??????????????? # # ##???????????????????? | | ??????????????? # # !!!##???????????????????? | | ??????????????? # # [!! ##???????????????????? | | ??????????????? # # *!! ##???????????????????? | | ??????????????? # # == ##???????????????????? | | ??????????????? # #/ ##???????????????????? | | ??????????????? # # ! ## ??????????????????? | | ??????# # ##/####### ??????????????????? | | ????####+####+### # # ??????????????????? | | ????#### ### """ ##??????????????????? | | ????## "R" ##??????????????????? | | ????## ### # " " ##??????????????????? | | ????## ^ # # ##??????????????????? | | ????## # """ #[ [ ##??????????????????? | | ####### ^ # """ ########## ???????????????? | | ####### # """ ########## ???????????????? | | # #"" + # # ???????????????? | | # #"T # "T" # # ???????????????? | | # #"" # """ # ] # ???????????????? | | # # # # # ???????????????? | | # # ######### + ???????????????? | | # + ##+########### # ???????????????? | | # # # ### # ???????????????? | | # # # ### = # ???????????????? | | # #### # #!%= ####?????????????? | | # #### # @ ####?????????????? | | # #### u ???????? | | # #### ## # #######??????????? | | #######?## # #############??????????? | | #######?## ##############???????????????? | | ????????###################?????????????????????? | | ????????#############???????????????????????????? | | | | | | | | | | | | | | | | | | | | | | | | | | | | | | | | | | | | | +----------------------------------------------------+ Best States ------------- Heat Dissipation 35 Energy Generation 10 Energy Capacity 250 Matter Stores 300 Matter Capacity 300 Sight Range 16 Terrain Scan Density 10 Evasion (%) 55 Item Schematics ----------------- None Robot Schematics ------------------ None Fabricated ------------ Nothing Alien Tech Used ----------------- None Achievements -------------- Unlikely Earthworm Challenges ------------ None Game ------ Seed PortableImprovedStabilizer Manual? 0 Play Time 00:16:51 Cumulative 1.1 hours Start 2024.04.02 @ 21:55:04 End 2024.04.02 @ 22:13:28 Sessions 1 Manual Loads 0 Difficulty Rogue Special Mode None Game No. 2 Rogue 2 Adventurer 0 Explorer 0 Win Type - Total 0 Types 0/0/0/0/0/0/0/0/0 Lore% 1 Gallery% 4 Achievement% 4 Wizard Run 0 Options --------- Layout 1 ASCII 0 Keyboard 0 Movement Numpad Keybinds 0 Fullscreen 1 Font 24/Smallcaps Map View 50x35 Zoom Use 0% Tactical HUD 0 Map Filters NONE Filters NONE Steam 1 RUN: 98bdf9e3-373a-416a-b3e3-ca697f53c247